Cogmind - Beta 15 @@@ ROGUE MODE // 2025.10.08 @ 15:31:46 Player: Bikerider58 Result: Destroyed by as-78484 with Assembled Heavy Rifle Performance ------------- Evolutions (0) 0 Regions Visited (2) 400 Robots Destroyed (24) 120 Value Destroyed (495) 495 Prototype IDs (0) 0 Alien Tech Used (0) 0 Bonus (0) 0 TOTAL SCORE: 1015 Bonus ------- None Cogmind --------- Core Integrity 0/250 Matter 153/300 Energy 100/100 System Corruption 0% Temperature Cool (0) Movement Core (700) Ox13 Location -10/Mines Parts ------- > --- POWER (1) -------- (None) > --- PROPULSION (2) --- (None) > --- UTILITY (2) ------ High-capacity Storage Unit > --- WEAPON (2) ------- Light Assault Rifle Light Assault Rifle > --- INVENTORY (20) --- Light Ion Engine Light Ion Engine Light Treads Aluminum Leg Aluminum Leg Hacking Suite Light Assault Rifle Light Assault Rifle Light Assault Rifle Light Assault Rifle Light Assault Rifle Light Assault Rifle Mining Laser Peak State ------------ > --- POWER ------------ Light Ion Engine > --- PROPULSION ------- Light Treads Light Treads > --- UTILITY ---------- High-capacity Storage Unit Seismic Detector > --- WEAPON ----------- Medium Laser Light Assault Rifle > --- INVENTORY -------- Hacking Suite EM Pulse Gun Medium Laser Light Assault Rifle Light Assault Rifle Light Assault Rifle Grenade Launcher Mining Laser [Rating: 8] Favorites ----------- Power Light Ion Engine Engine Light Ion Engine Propulsion Light Treads Treads Light Treads Wheel Compact Wheel Utility Seismic Detector Device Seismic Detector Storage High-capacity Storage Unit Protection Light Armor Plating Weapon Light Assault Rifle Energy Gun Medium Laser Ballistic Gun Light Assault Rifle Launcher Grenade Launcher Special Weapon Mining Laser Build | -11 -10 -10 ------- Run | Yrd Mat Min Slots Evolved . | . . . Power . | . . . Propulsion . | . . . Utility . | . . . Weapon . | . . . Parts Attached 18 | 7 7 4 Power 2 | 1 1 . Engine 2 | 1 1 . Core . | . . . Reactor . | . . . Propulsion 3 | 2 . 1 Treads 2 | 2 . . Leg . | . . . Wheel 1 | . . 1 Hover . | . . . Flight . | . . . Utility 4 | 2 1 1 Device 1 | 1 . . Storage 2 | 1 1 . Processor . | . . . Hackware . | . . . Protection 1 | . . 1 Artifact . | . . . Weapon 9 | 2 5 2 Energy Gun 1 | 1 . . Energy Cannon . | . . . Ballistic Gun 6 | 1 3 2 Ballistic Cannon . | . . . Launcher 1 | . 1 . Special Weapon 1 | . 1 . Impact Weapon . | . . . Slashing Weapon . | . . . Piercing Weapon . | . . . Special Melee Weapon . | . . . Unidentified Prototypes . | . . . Parts Lost 8 | . . 8 Power 1 | . . 1 Propulsion 3 | . . 3 Utility 2 | . . 2 Weapon 2 | . . 2 Highest Loss Streak 7 | . . 7 To Critical Strikes 1 | . . 1 Average Backups 6 | 1 6 15 Power . | . . 2 Propulsion . | . . 2 Utility . | . . 1 Weapon 4 | 1 4 8 Tool/Special . | . . . Unused Backups 10 | . 2 8 Power 1 | . . 1 Propulsion 3 | . . 3 Utility 1 | . . 1 Weapon 5 | . 2 3 Tool/Special . | . . . Average Slot Usage (%) 96 | . 99 77 Engine 13 | . 14 9 Treads 26 | . 28 20 Device 12 | . 14 . Storage 14 | . 14 14 Energy Gun 7 | . 8 . Ballistic Gun 19 | . 18 24 Peak Build Rating 8 | 7 8 8 Average Rating 6 | 5 7 6 On Entrance 5 | . 7 8 Naked Turns . | . . . Heaviest Build 50 | 12 48 50 Greatest Support 40 | 40 40 40 Greatest Overweight (x) 2 | . 1 2 Average Overweight (x) . | . . 1 Largest Inventory Capacity 20 | 8 20 20 Average Capacity 16 | 7 17 20 Most Carried 17 | 3 15 17 Average Carried 6 | 1 6 15 Final Capacity 20 | 8 20 20 Final Carried 15 | 2 15 13 Class Distribution -------------------- 100% | Mutant Dominant Class ---------------- Mutant | -10/Materials Mutant | -10/Mines Resources | -11 -10 -10 ----------- Run | Yrd Mat Min Matter Collected 507 | 282 199 26 Remotely . | . . . Salvage Created 810 | 137 504 169 Parts 45 | 12 27 6 Haulers Intercepted . | . . . Recyclers Shooed 1 | 1 . . Parts Field Recycled . | . . . Retrieved Matter . | . . . Parts Self-Destructed . | . . . Prevented . | . . . Kills | -11 -10 -10 ------- Run | Yrd Mat Min Combat Hostiles Destroyed 33 | . 14 19 Guns 16 | . 10 6 AOE 17 | . 4 13 Classes Destroyed 7 | 2 4 1 Tunneler 4 | 4 . . Recycler 2 | 1 1 . Operator 1 | . 1 . Watcher 1 | . 1 . Swarmer 6 | . 6 . Grunt 10 | . 8 2 Assembled 17 | . . 17 Best Kill Streak 13 | 2 4 13 Combat Bots Only 13 | . 4 13 Max Kills in Single Turn 3 | 1 2 3 Gunslinging 1 | . . 1 Exploded 3 | . 2 3 Melee . | . . . Uniques/NPCs Destroyed . | . . . Combat | -11 -10 -10 -------- Run | Yrd Mat Min Hostile Shots Fired 149 | . 54 95 Missed 47 | . 14 33 Hits 102 | . 40 62 Projectile 102 | . 40 62 Critical Strikes 2 | . 1 1 Damage Taken 1229 | . 420 809 Core 253 | . 100 153 Absorbed by Shields . | . . . Core Remaining (%) 100 | 100 . . Volleys Fired 111 | 12 64 35 Largest 2 | 2 2 2 Hottest 100 | 70 100 40 Shots Fired 207 | 24 124 59 Gun 192 | 24 120 48 Cannon . | . . . Launcher 13 | . 2 11 Special 2 | . 2 . Kinetic 139 | 12 79 48 Thermal 55 | 12 43 . Explosive 13 | . 2 11 Electromagnetic . | . . . Robot Hit Streak 19 | 12 19 7 Robot Miss Streak 5 | 5 4 2 Penetration Max . | . . . Secondary Targets 3 | . . 3 Max Gunslinging Chain 1 | . . 1 Shots Hit Robots 127 | 15 79 33 Core Hits 90 | 8 35 47 Critical Kills . | . . . Critical Parts Destroyed . | . . . Critical Strikes 2 | . 2 . Burn 2 | . 2 . Melee Attacks . | . . . Impact . | . . . Slashing . | . . . Piercing . | . . . Sneak Attacks . | . . . Combat Hostiles . | . . . Follow-up Attacks . | . . . Damage Inflicted 2093 | 150 925 1018 Guns 1178 | 150 773 255 Cannons . | . . . Explosions 915 | . 152 763 Melee . | . . . Ramming . | . . . Kinetic 742 | 64 423 255 Thermal 436 | 86 350 . Explosive 915 | . 152 763 Electromagnetic . | . . . Impact . | . . . Slashing . | . . . Piercing . | . . . Highest Corruption . | . . . Average Corruption . | . . . Corruption Purged . | . . . Corruption Blocked . | . . . Overload Shots . | . . . Overflow Damage 22 | . 5 17 Projectiles . | . . . Explosions 22 | . 5 17 Melee . | . . . Knockbacks . | . . . Impact . | . . . Kinetic . | . . . Secondary . | . . . Self-Inflicted Damage . | . . . Shots . | . . . Rammed . | . . . Targets Rammed . | . . . Kicked . | . . . Crushed . | . . . Highest Temperature 182 | 110 182 40 Average Temperature 53 | 42 62 18 Received Heat Transfer 354 | . 198 156 Siege Activations . | . . . Martial Activations . | . . . Shielding Activations . | . . . Robots Disrupted . | . . . Combat Hostiles . | . . . Robots Corrupted . | . . . Combat Hostiles . | . . . Parts Fried . | . . . Impact Corruptions . | . . . Robots Melted . | . . . Combat Hostiles . | . . . Parts Melted 5 | 1 4 . Heat Transferred 1443 | 259 1184 . Parts Sabotaged . | . . . Parts Stolen . | . . . Parts Stripped . | . . . Power Chain Reactions . | . . . Alert | -11 -10 -10 ------- Run | Yrd Mat Min Maximum Alert Level . | . . . Low Security (%) 100 | 100 100 100 Level 1 . | . . . Level 2 . | . . . Level 3 . | . . . Level 4 . | . . . Level 5 . | . . . High Security . | . . . Max Security . | . . . Peak Influence 141 | 10 141 72 Initial 52 | . . 52 Average 36 | 1 43 37 Influence Increases 567 | 25 477 65 Destroy 0b10 Robot/C 320 | . 280 40 Destroy 0b10 Robot/NC 40 | 25 15 . Destroy Leader 82 | . 72 10 Select Force Hacks 30 | . 30 . Disable Machine 15 | . 15 . Destroy Structure 35 | . 20 15 Lose Combat Pursuer 45 | . 45 . Influence Decreases 567 | 25 342 200 Entered New Map 83 | . . 83 Time Decay 427 | 25 342 60 Lost Part 57 | . . 57 Squads Dispatched 5 | . 5 . Investigation 2 | . 2 . Extermination . | . . . Reinforcement 3 | . 3 . Assault . | . . . Garrison . | . . . Intercept . | . . . Searches Triggered . | . . . Construction Impeded . | . . . Haulers Reinforced . | . . . Active Scanning Responses . | . . . Cargo Convoy Interrupts . | . . . Stealth | -11 -10 -10 --------- Run | Yrd Mat Min Distress Signals 2 | . 2 . Communications Jammed . | . . . Distress Signals . | . . . Times Spotted 48 | . 24 24 Peak Tracking Total 19 | . 6 19 Tactical Retreats 3 | . 2 1 Traps | -11 -10 -10 ------- Run | Yrd Mat Min Traps Triggered 1 | . 1 . Indirectly . | . . . Trap Hack Attempts . | . . . Triggered . | . . . Disarmed . | . . . Reprogrammed . | . . . Reused . | . . . Traps Extracted . | . . . Installed . | . . . Triggered . | . . . Machines | -11 -10 -10 ---------- Run | Yrd Mat Min Machines Disabled 1 | . 1 . Max in Single Turn 1 | . 1 . Machines Repaired . | . . . Machines Dismantled . | . . . Machines Sabotaged . | . . . Overloaded Fab Kills . | . . . Hacking | -11 -10 -10 --------- Run | Yrd Mat Min Machines Accessed 1 | . 1 . Terminals . | . . . Fabricators . | . . . Repair Stations . | . . . Recycling Units 1 | . 1 . Scanalyzers . | . . . Garrison Access . | . . . Total Hacks 1 | . 1 . Successful 1 | . 1 . Failed . | . . . Catastrophic . | . . . Database Lockouts . | . . . Manual 1 | . 1 . Terminals . | . . . Fabricators . | . . . Repair Stations . | . . . Recycling Units 1 | . 1 . Scanalyzers . | . . . Garrison Access . | . . . Terminal Hacks . | . . . Fabricator Hacks . | . . . Repair Station Hacks . | . . . Recycling Unit Hacks . | . . . Scanalyzer . | . . . Garrison Access Hacks . | . . . Unauthorized Hacks 1 | . 1 . Terminals . | . . . Fabricators . | . . . Repair Stations . | . . . Recycling Units 1 | . 1 . Tunnel 1 | . 1 . Scanalyzers . | . . . Garrison Access . | . . . Data Cores Recovered . | . . . Used . | . . . Hacking Detections . | . . . Full Trace Events . | . . . Feedback Events . | . . . Feedback Blocked . | . . . Robot Schematics Acquired . | . . . Robots Built . | . . . Authchips . | . . . Time . | . . . Total Robot Build Rating . | . . . Part Schematics Acquired . | . . . Parts Built . | . . . Authchips . | . . . Time . | . . . Total Part Build Rating . | . . . Parts Repaired . | . . . Time . | . . . Parts Recycled . | . . . Recycled Matter . | . . . Retrieved Matter . | . . . Retrieved Components . | . . . Parts Scanalyzed . | . . . Part Schematics Acquired . | . . . Parts Damaged . | . . . Bothacking | -11 -10 -10 ------------ Run | Yrd Mat Min Used RIF Installer . | . . . Robots Hacked . | . . . Non-combat . | . . . Combat . | . . . Robot Hacks Applied . | . . . Relay Couplers Released . | . . . Fabnet Peak Effective % . | . . . Robots Rewired . | . . . Allies Hacked . | . . . Hacks Repelled . | . . . Allies | -11 -10 -10 -------- Run | Yrd Mat Min Total Allies . | . . . Largest Group . | . . . Highest-Rated Group . | . . . Highest-Rated Ally . | . . . Total Orders . | . . . Ally Attacks . | . . . Total Damage . | . . . Kills . | . . . Allies Corrupted . | . . . Allies Melted . | . . . Intel | -11 -10 -10 ------- Run | Yrd Mat Min Active Infowar (turns) 1179 | 24 1151 4 Seismic 1179 | 24 1151 4 Robot Analysis Total . | . . . Derelict Logs Recovered . | . . . Drone Launches . | . . . Drone Recoveries . | . . . Exploration | -11 -10 -10 ------------- Run | Yrd Mat Min Turns Passed 1529 | 207 1151 171 Spaces Moved 514 | 95 386 33 Core 1 | 1 . . Treads 509 | 94 386 29 Legs . | . . . Wheels 4 | . . 4 Hover . | . . . Flight . | . . . Fastest Speed 50 | 50 160 130 Average Speed 209 | 158 221 226 Slowest Speed 240 | 160 240 240 Overloaded Moves . | . . . Propulsion Burnouts . | . . . Robots Hopped . | . . . Potential Cave-ins . | . . . Cave-ins Triggered . | . . . Exploration Rate (%) 29 | 9 56 22 Regions Visited 2 Branch Regions 1 Pre-discovered Areas 1 | . 1 . Known Exits Taken . | . . . Unknown Exits Taken 2 | 1 1 . Scrap Searched . | . . . Spaces Dug 2 | . 2 . Terrain Destroyed 48 | . 25 23 Melee . | . . . Projectile 2 | . 2 . AOE 46 | . 23 23 Terrain Rammed . | . . . Walls Destroyed . | . . . Machines Disabled . | . . . Actions | -11 -10 -10 --------- Run | Yrd Mat Min Total 776 | 127 570 79 Wait 106 | 10 92 4 Move 512 | 94 385 33 Hop . | . . . Pick Up 20 | 4 14 2 Fast Attach 7 | 5 2 . Attach 6 | 2 . 4 Detach . | . . . Swap 9 | . 8 1 Drop 5 | . 5 . Fire 111 | 12 64 35 Melee . | . . . Ram . | . . . Kick . | . . . Crush . | . . . Escape Stasis . | . . . Rewire . | . . . Trap . | . . . Miscellaneous . | . . . Route ------- -11/Scrapyard -10/Materials (discovered 2 exits: [*Mat] / [*Min]) -10/Mines History --------- Turn | Location | Event 18 | -11/Scrapyard | Discovered new exit (range 16) 208 | -11/Scrapyard | Entered Materials 304 | -10/Materials | Build established: Mutant 1081 | -10/Materials | Discovered new exit (range 10) 1196 | -10/Materials | Discovered new exit (range 6) 1359 | -10/Materials | Entered Mines 1382 | -10/Mines | Core integrity fell below 50% 1464 | -10/Mines | Assembled infested the area 1477 | -10/Mines | Core integrity fell below 20% 1508 | -10/Mines | Destroyed 13 combat bots 1530 | -10/Mines | Destroyed by as-78484 with Assembled Heavy Rifle Last Messages --------------- 01483_ as-46584 destroyed. 01483_ as-47405 destroyed. 01483_ Critical hit (Destroy). 01483_ Lgt. Assault Rifle destroyed. 01484_ The unstable cave ceiling collapses. 01485_ as-38155 destroyed. 01485_ as-91212 destroyed. 01486_ Lgt. Treads destroyed. 01487_ The unstable cave ceiling collapses. 01487_ as-63512 destroyed. 01488_ Lgt. Armor Plating destroyed. 01490_ Grenade Launcher destroyed. 01504_ Com. Wheel destroyed. 01509_ as-92879 destroyed. 01509_ Switching to secondary target: as-66562. 01515_ as-66562 destroyed. [Achievement: Exterminator] 01520_ as-07739 destroyed. 01520_ Switching to secondary target: as-84450. 01520_ as-84450 destroyed. Map ----- +----------------------------------------------------+ | ?????###?????????????????????? | | ?????# ##???????????????????? | | ?????# #???????????????????? | | ?????# ##??????????????????? | | ????## #??????????????????? | | ???## ##?????????????????? | | ??## ####??????????????? | | ?## ##?????????????? | | ?# ##????????????? | | ?# [ #????????????? | | ?# !% ##???????????? | | ?# ##=[ #???????????? | | ?# ####% ########????? | | ?## #?## #???? | | ??# ## ###### #???? | | ??# ##???????????? | | ??# ###????????????? | | ??# ##??????????????? | | ??## #???????????????? | | ???### # #???????????????? | | ?????### # #???????????????? | | ???##### # #???????????????? | | ??## ## ##??????????????? | | ??# ##?????????????? | | ??# ##????????????? | | ??## @ #????????????? | | ???## % % #????????????? | | ????###a% ##????????????? | | ??????## ##????????????? | | ???????# #????????????? | | ???????# ?????? | | ???????# ????? | | ???????# ?????? | | ??????? #?????? | | ??????? ??????? | | ?????? ## ??????? | | ?????? ?# ??????? | | ????? #? ???????? | | ????? #?? #???????? | | ????# #??? #????????? | | ????# ##?????????????? | | ???? #??????????????? | | ???? # ??????????????? | | ????? ???????????????? | | ??????? ?????????????????? | | ?????????????????????????????? | | ?????????????????????????????? | | ?????????????????????????????? | | ?????????????????????????????? | | ?????????????????????????????? | +----------------------------------------------------+ Best States ------------- Heat Dissipation 25 Energy Generation 10 Energy Capacity 250 Matter Stores 300 Matter Capacity 300 Sight Range 16 Terrain Scan Density 10 Armor Coverage 150 Evasion (%) 40 Recoil Reduction 2 Item Schematics ----------------- None Robot Schematics ------------------ None Fabricated ------------ Nothing Repaired ---------- Nothing Alien Tech Used ----------------- None Achievements -------------- Exterminator Challenges ------------ None Game ------ Seed RefineryModifiedConstruct Manual? 0 Play Time 00:09:30 Cumulative 123.1 hours Start 2025.10.08 @ 15:24:01 End 2025.10.08 @ 15:31:46 Sessions 1 Manual Loads 0 Difficulty Rogue Special Mode None Game No. 67 Rogue 62 Adventurer 5 Explorer 0 Win Type - Total 2 Types 2/0/0/0/0/0/0/0/0/0 Lore% 54 Gallery% 58 Achievement% 53 Wizard Run 0 Options --------- Layout 1 ASCII 0 Keyboard 0 Movement Numpad Keybinds 0 Fullscreen 1 Font 24/Smallcaps Map View 50x35 Zoom Use 0% Tactical HUD 1 Map Filters NONE Filters NONE Steam 1 RUN: d7399a8f-fd90-4bae-a50c-754ba2b8a671